Cogmind - Beta 17 @@@ ROGUE MODE // 2026.08.16 @ 09:15:43 Player: Floof Enjoyer Result: Self-destructed Performance ------------- Evolutions (3) 1500 Regions Visited (6) 1200 Robots Destroyed (41) 205 Value Destroyed (1106) 1106 Prototype IDs (5) 100 Alien Tech Used (0) 0 Bonus (422) 422 TOTAL SCORE: 4533 Bonus ------- Follower Combat Kills 122 Aligned with FarCom 300 Cogmind --------- Core Integrity 651/700 Matter 264/300 Energy 440/440 System Corruption 0% Temperature Cool (0) Movement Flying (37) Location -7/Factory Parts ------- > --- POWER (2) -------- Reinforced Ion Engine Deuterium Engine > --- PROPULSION (6) --- Improved Flight Unit Improved Flight Unit Flying Fortress v7 > --- UTILITY (3) ------ Improved Heat Sink Improved Sensor Array Advanced Targeting Computer > --- WEAPON (2) ------- Advanced Beam Rifle Minigun > --- INVENTORY (5) ---- Improved Sensor Array Microactuators Advanced Beam Rifle Gauss Rifle Great Axe Peak State ------------ > --- POWER ------------ Reinforced Ion Engine Reinforced Ion Engine > --- PROPULSION ------- Improved Flight Unit Improved Flight Unit Flying Fortress v7 > --- UTILITY ---------- Improved Heat Sink Improved Sensor Array Advanced Targeting Computer > --- WEAPON ----------- Arc Projector Gatling Laser > --- INVENTORY -------- Improved Sensor Array Gauss Rifle Scythe [Rating: 60] Favorites ----------- Power Reinforced Ion Engine Engine Reinforced Ion Engine Propulsion Hover Unit Wheel Wheel Hover Unit Hover Unit Flight Unit Flying Fortress v7 Utility Improved Heat Sink Device Improved Heat Sink Storage Small Storage Unit Processor Advanced Targeting Computer Weapon Autogun Energy Gun Medium Laser Energy Cannon Advanced Beam Cannon Ballistic Gun Autogun Launcher Rocket Launcher Slashing Weapon Scythe Build | -11 -10 -10 -10 -9 -8 -7 ------- Run | Yrd Mat Min Exi Min Mat Fac Slots Evolved 6 | . . . . . 4 2 Power 1 | . . . . . 1 . Propulsion 4 | . . . . . 2 2 Utility 1 | . . . . . 1 . Weapon . | . . . . . . . Parts Attached 44 | 5 12 5 2 3 11 6 Power 8 | 1 4 . . 1 1 1 Engine 8 | 1 4 . . 1 1 1 Core . | . . . . . . . Reactor . | . . . . . . . Propulsion 10 | 2 3 2 . . 1 2 Treads . | . . . . . . . Leg . | . . . . . . . Wheel 3 | 2 1 . . . . . Hover 4 | . 2 2 . . . . Flight 3 | . . . . . 1 2 Utility 9 | . 3 1 2 . 3 . Device 5 | . . 1 2 . 2 . Storage 1 | . 1 . . . . . Processor 3 | . 2 . . . 1 . Hackware . | . . . . . . . Protection . | . . . . . . . Artifact . | . . . . . . . Weapon 17 | 2 2 2 . 2 6 3 Energy Gun 7 | 1 . 1 . . 3 2 Energy Cannon 1 | . . . . . 1 . Ballistic Gun 6 | 1 2 . . 1 1 1 Ballistic Cannon . | . . . . . . . Launcher 2 | . . 1 . 1 . . Special Weapon . | . . . . . . . Impact Weapon . | . . . . . . . Slashing Weapon 1 | . . . . . 1 . Piercing Weapon . | . . . . . . . Special Melee Weapon . | . . . . . . . Unidentified Prototypes 5 | . . . 1 . 2 2 Parts Lost 4 | . 2 2 . . . . Power 1 | . 1 . . . . . Propulsion 1 | . 1 . . . . . Utility . | . . . . . . . Weapon 2 | . . 2 . . . . Highest Loss Streak 2 | . 1 2 . . . . To Critical Strikes . | . . . . . . . Average Backups 4 | 2 5 4 3 2 4 4 Power . | . . . . . . . Propulsion . | . 1 1 1 1 . . Utility . | . . . . . 1 1 Weapon 2 | 1 3 2 1 . 2 3 Tool/Special . | . . . . . . . Unused Backups 17 | . 4 . 2 . 6 5 Power 4 | . 1 . 1 . 2 . Propulsion . | . . . . . . . Utility 4 | . . . . . 2 2 Weapon 9 | . 3 . 1 . 2 3 Tool/Special . | . . . . . . . Average Slot Usage (%) 86 | . 87 99 100 100 70 75 Engine 14 | . 14 14 14 14 17 15 Wheel 5 | . 16 . . . . . Hover 13 | . 11 28 28 28 . . Flight 4 | . . . . . 8 22 Device 11 | . . 6 20 28 19 15 Storage 2 | . 7 . . . . . Processor 9 | . 9 21 7 . 7 7 Energy Gun 7 | . 1 8 20 15 10 7 Ballistic Gun 12 | . 25 14 . 1 6 5 Launcher 2 | . . 3 7 11 . . Peak Build Rating 60 | 5 10 11 22 16 54 60 Average Rating 24 | 3 8 10 12 15 51 59 On Entrance 15 | . 5 10 11 14 16 52 Avg Prop Armor Cover (%) . | . . . . . . . Naked Turns . | . . . . . . . Heaviest Build 30 | 9 16 9 8 18 30 28 Greatest Support 60 | 20 20 12 12 12 50 60 Greatest Overweight (x) 1 | . 1 . . 1 . . Average Overweight (x) . | . . . . . . . Largest Inventory Capacity 8 | 5 8 5 5 5 5 5 Average Capacity 5 | 5 6 5 5 5 5 5 Most Carried 8 | 5 8 5 5 5 5 5 Average Carried 4 | 2 5 4 4 4 4 4 Final Capacity 5 | 5 5 5 5 5 5 5 Final Carried 5 | 2 5 5 5 5 5 5 Class Distribution -------------------- 42% | Scavenger-Mutant 31% | Scout 25% | Mutant Dominant Class ---------------- Mutant | -10/Materials Scavenger-Mutant | -10/Mines Scavenger-Mutant | -10/Exiles Scavenger-Mutant | -9/Mines Scout | -8/Materials Scout | -7/Factory Resources | -11 -10 -10 -10 -9 -8 -7 ----------- Run | Yrd Mat Min Exi Min Mat Fac Matter Collected 1421 | 168 573 251 . 67 238 124 Remotely . | . . . . . . . Salvage Created 1678 | . 559 454 . . 541 124 Parts 84 | . 38 11 . . 32 3 Haulers Intercepted 2 | . 2 . . . . . Recyclers Shooed 2 | . . 1 . 1 . . Parts Field Recycled . | . . . . . . . Retrieved Matter . | . . . . . . . Parts Self-Destructed . | . . . . . . . Prevented . | . . . . . . . Parts Restored . | . . . . . . . Kills | -11 -10 -10 -10 -9 -8 -7 ------- Run | Yrd Mat Min Exi Min Mat Fac Combat Hostiles Destroyed 27 | . 13 4 . . 8 2 Melee 1 | . . . . . 1 . Guns 26 | . 13 4 . . 7 2 Classes Destroyed 12 | . 5 1 . . 6 . Worker 2 | . 1 1 . . . . Builder 1 | . . . . . 1 . Tunneler 1 | . . . . . 1 . Hauler 2 | . 2 . . . . . Recycler 4 | . . 3 . . 1 . Operator 1 | . . . . . 1 . Watcher 3 | . 2 . . . 1 . Swarmer 6 | . 6 . . . . . Grunt 15 | . 7 4 . . 4 . Duelist 1 | . . . . . 1 . Sentry 4 | . . . . . 2 2 Hunter 1 | . . . . . 1 . Best Kill Streak 8 | . 7 4 . . 8 1 Combat Bots Only 5 | . 5 2 . . 2 1 Max Kills in Single Turn 1 | . 1 1 . . 1 1 Gunslinging . | . . . . . . . Exploded . | . . . . . . . Melee 1 | . . . . . 1 . Uniques/NPCs Destroyed . | . . . . . . . Combat | -11 -10 -10 -10 -9 -8 -7 -------- Run | Yrd Mat Min Exi Min Mat Fac Hostile Shots Fired 197 | . 52 24 . . 34 87 Missed 72 | . 11 9 . . 11 41 Hits 125 | . 41 15 . . 23 46 Melee 2 | . . . . . 2 . Projectile 123 | . 41 15 . . 21 46 Critical Strikes 4 | . 1 1 . . 2 . Damage Taken 1371 | . 426 192 . . 395 358 Core 140 | . 53 10 . . 28 49 Absorbed by Shields . | . . . . . . . Regen/Repaired (Parts) 88 | . 88 . . . . . Core Remaining (%) 89 | 100 . . . 74 94 . Volleys Fired 114 | . 48 27 . 4 24 11 Largest 2 | . 2 2 . 1 2 2 Hottest 118 | . 70 73 . 50 118 89 Shots Fired 220 | . 96 51 . 4 48 21 Gun 220 | . 96 51 . 4 48 21 Cannon . | . . . . . . . Launcher . | . . . . . . . Special . | . . . . . . . Kinetic 165 | . 95 47 . . 13 10 Thermal 44 | . 1 4 . 4 24 11 Explosive . | . . . . . . . Electromagnetic 11 | . . . . . 11 . Robot Hit Streak 29 | . 8 12 . 5 29 12 Robot Miss Streak 7 | . 3 4 . 1 7 1 Penetration Max 1 | . . . . . 1 . Secondary Targets 5 | . 2 1 . . 2 . Max Gunslinging Chain 1 | . 1 1 . . 1 . Shots Hit Robots 146 | . 49 34 . 3 43 17 Core Hits 68 | . 22 13 . 1 26 6 Critical Kills 1 | . . . . . 1 . Critical Parts Destroyed 1 | . . 1 . . . . Critical Strikes 5 | . . 2 . . 3 . Burn 2 | . . 1 . . 1 . Destroy 2 | . . 1 . . 1 . Sever 1 | . . . . . 1 . Melee Attacks 3 | . . . . . 3 . Impact . | . . . . . . . Slashing 3 | . . . . . 3 . Piercing . | . . . . . . . Sneak Attacks . | . . . . . . . Combat Hostiles . | . . . . . . . Follow-up Attacks . | . . . . . . . Damage Inflicted 2528 | . 814 513 . 37 854 310 Guns 2318 | . 791 511 . 37 669 310 Cannons . | . . . . . . . Explosions 91 | . . . . . 91 . Melee 94 | . . . . . 94 . Ramming 25 | . 23 2 . . . . Kinetic 1584 | . 791 462 . . 201 130 Thermal 722 | . . 49 . 37 456 180 Explosive . | . . . . . . . Electromagnetic 103 | . . . . . 103 . Impact . | . . . . . . . Slashing 94 | . . . . . 94 . Piercing . | . . . . . . . Highest Corruption 3 | . 1 1 1 1 3 . Average Corruption 1 | . 1 1 1 1 3 . Corruption Purged . | . . . . . . . Corruption Blocked . | . . . . . . . Effects 15 | . 5 1 1 3 5 . Message Errors 3 | . . . 1 1 1 . Matter Fused 6 | . 3 . . . 3 . Heat Flow Errors 1 | . 1 . . . . . Energy Discharges 2 | . . . . 1 1 . Parts Rejected 1 | . 1 . . . . . Data Loss (minor) 1 | . . . . 1 . . Weapon Failures 1 | . . 1 . . . . Overload Shots . | . . . . . . . Overflow Damage . | . . . . . . . Projectiles . | . . . . . . . Explosions . | . . . . . . . Melee . | . . . . . . . Knockbacks 1 | . 1 . . . . . Impact 1 | . 1 . . . . . Kinetic . | . . . . . . . Secondary . | . . . . . . . Self-Inflicted Damage 12 | . 11 1 . . . . Shots . | . . . . . . . Rammed 3 | . 2 1 . . . . Targets Rammed 3 | . 2 1 . . . . Kicked . | . . . . . . . Crushed . | . . . . . . . Highest Temperature 498 | . 188 109 . . 498 293 Average Temperature 81 | . 19 33 . . 149 115 Received Heat Transfer 564 | . 153 129 . . 162 120 Effects 7 | . . . . . 7 . Shutdowns 5 | . . . . . 5 . Damage (major) 2 | . . . . . 2 . Siege Activations . | . . . . . . . Martial Activations . | . . . . . . . Shielding Activations . | . . . . . . . Robots Disrupted . | . . . . . . . Combat Hostiles . | . . . . . . . Robots Corrupted . | . . . . . . . Combat Hostiles . | . . . . . . . Parts Fried . | . . . . . . . Impact Corruptions . | . . . . . . . Robots Melted . | . . . . . . . Combat Hostiles . | . . . . . . . Parts Melted 2 | . . 1 . . . 1 Heat Transferred 1659 | . . 222 . 111 993 333 Parts Sabotaged . | . . . . . . . Parts Stolen . | . . . . . . . Parts Stripped . | . . . . . . . Power Chain Reactions 1 | . . . . . 1 . Alert | -11 -10 -10 -10 -9 -8 -7 ------- Run | Yrd Mat Min Exi Min Mat Fac Maximum Alert Level . | . . . . . . . Low Security (%) 100 | 100 100 100 . 100 100 100 Level 1 . | . . . . . . . Level 2 . | . . . . . . . Level 3 . | . . . . . . . Level 4 . | . . . . . . . Level 5 . | . . . . . . . High Security . | . . . . . . . Max Security . | . . . . . . . Peak Influence 195 | . 195 119 . 43 187 71 Initial 71 | . . 69 . . 4 71 Average 65 | . 88 78 . 8 73 45 Influence Increases 1012 | . 446 120 . 53 317 76 Destroy 0b10 Robot/C 620 | . 260 80 . 40 200 40 Destroy 0b10 Robot/NC 70 | . 25 20 . . 25 . Destroy Leader 170 | . 68 20 . 10 52 20 Allied During Kill 29 | . . . . 3 25 1 Successful Hack 2 | . 2 . . . . . Disable Machine 45 | . 45 . . . . . Destroy Structure 1 | . 1 . . . . . Lose Combat Pursuer 75 | . 45 . . . 15 15 Influence Decreases 1005 | . 267 280 19 40 173 226 Entered New Map 224 | . . 110 19 . 9 86 Time Decay 701 | . 247 150 . 40 144 120 Lost Part 40 | . 20 20 . . . . Lost Ally 40 | . . . . . 20 20 Squads Dispatched 5 | . 3 . . . 1 1 Investigation 3 | . 2 . . . . 1 Extermination . | . . . . . . . Reinforcement 2 | . 1 . . . 1 . Assault . | . . . . . . . Garrison . | . . . . . . . Intercept . | . . . . . . . Searches Triggered . | . . . . . . . Construction Impeded . | . . . . . . . Haulers Reinforced . | . . . . . . . Active Scanning Responses . | . . . . . . . Cargo Convoy Interrupts . | . . . . . . . Stealth | -11 -10 -10 -10 -9 -8 -7 --------- Run | Yrd Mat Min Exi Min Mat Fac Distress Signals . | . . . . . . . Communications Jammed . | . . . . . . . Distress Signals . | . . . . . . . Times Spotted 45 | . 19 4 . 2 16 4 Peak Tracking Total 4 | . 4 2 . 2 3 2 Tactical Retreats 3 | . 1 . . . 1 1 Traps | -11 -10 -10 -10 -9 -8 -7 ------- Run | Yrd Mat Min Exi Min Mat Fac Traps Triggered 3 | . 3 . . . . . Indirectly . | . . . . . . . Trap Hack Attempts . | . . . . . . . Triggered . | . . . . . . . Disarmed . | . . . . . . . Reprogrammed . | . . . . . . . Reused . | . . . . . . . Traps Extracted . | . . . . . . . Installed . | . . . . . . . Triggered . | . . . . . . . Machines | -11 -10 -10 -10 -9 -8 -7 ---------- Run | Yrd Mat Min Exi Min Mat Fac Machines Disabled 3 | . 3 . . . . . Max in Single Turn 1 | . 1 . . . . . Machines Repaired . | . . . . . . . Machines Dismantled . | . . . . . . . Machines Sabotaged . | . . . . . . . Overloaded Fab Kills . | . . . . . . . Hacking | -11 -10 -10 -10 -9 -8 -7 --------- Run | Yrd Mat Min Exi Min Mat Fac Machines Accessed 4 | . 1 . . . 1 2 Terminals . | . . . . . . . Fabricators 1 | . . . . . . 1 Repair Stations 1 | . 1 . . . . . Recycling Units 1 | . . . . . . 1 Scanalyzers 1 | . . . . . 1 . Garrison Access . | . . . . . . . Total Hacks 11 | . 3 . . . 3 5 Successful 6 | . 2 . . . 2 2 Failed 5 | . 1 . . . 1 3 Catastrophic 1 | . . . . . . 1 Database Lockouts . | . . . . . . . Manual 1 | . . . 1 . . . Terminals . | . . . . . . . Fabricators 1 | . . . . . . 1 Repair Stations 3 | . 3 . . . . . Recycling Units 4 | . . . . . . 4 Scanalyzers 3 | . . . . . 3 . Garrison Access . | . . . . . . . Terminal Hacks . | . . . . . . . Fabricator Hacks 1 | . . . . . . 1 Network Status 1 | . . . . . . 1 Repair Station Hacks 2 | . 2 . . . . . Scan Component 1 | . 1 . . . . . Repair 1 | . 1 . . . . . Recycling Unit Hacks 1 | . . . . . . 1 Report Inventory 1 | . . . . . . 1 Scanalyzer 2 | . . . . . 2 . Retrieve Study 2 | . . . . . 2 . Garrison Access Hacks . | . . . . . . . Unauthorized Hacks . | . . . . . . . Terminals . | . . . . . . . Fabricators . | . . . . . . . Repair Stations . | . . . . . . . Recycling Units . | . . . . . . . Scanalyzers . | . . . . . . . Garrison Access . | . . . . . . . Data Cores Recovered . | . . . . . . . Used . | . . . . . . . Hacking Detections 2 | . . . . . 1 1 Full Trace Events 1 | . . . . . . 1 Feedback Events . | . . . . . . . Feedback Blocked . | . . . . . . . Robot Schematics Acquired . | . . . . . . . Robots Built . | . . . . . . . Authchips . | . . . . . . . Time . | . . . . . . . Total Robot Build Rating . | . . . . . . . Part Schematics Acquired . | . . . . . . . Parts Built . | . . . . . . . Authchips . | . . . . . . . Time . | . . . . . . . Total Part Build Rating . | . . . . . . . Part Studies Acquired 2 | . . . . . 2 . Parts Repaired 1 | . 1 . . . . . Time 32 | . 32 . . . . . Parts Recycled . | . . . . . . . Recycled Matter . | . . . . . . . Retrieved Matter . | . . . . . . . Retrieved Components . | . . . . . . . Parts Scanalyzed . | . . . . . . . Part Schematics Acquired . | . . . . . . . Parts Damaged . | . . . . . . . Bothacking | -11 -10 -10 -10 -9 -8 -7 ------------ Run | Yrd Mat Min Exi Min Mat Fac Used RIF Installer . | . . . . . . . Robots Hacked . | . . . . . . . Non-combat . | . . . . . . . Combat . | . . . . . . . Robot Hacks Applied . | . . . . . . . Relay Couplers Released . | . . . . . . . Fabnet Peak Effective % . | . . . . . . . Robots Rewired . | . . . . . . . Allies Hacked . | . . . . . . . Hacks Repelled . | . . . . . . . Allies | -11 -10 -10 -10 -9 -8 -7 -------- Run | Yrd Mat Min Exi Min Mat Fac Total Allies 3 | . . . . 3 . . Largest Group 3 | . . . . 3 3 1 Highest-Rated Group 72 | . . . . 72 72 10 Highest-Rated Ally 31 | . . . . 31 31 10 Total Orders . | . . . . . . . Ally Attacks 20 | . . . . 8 12 . Total Damage 381 | . . . . 169 212 . Kills 4 | . . . . 2 2 . Allies Corrupted . | . . . . . . . Allies Melted . | . . . . . . . Intel | -11 -10 -10 -10 -9 -8 -7 ------- Run | Yrd Mat Min Exi Min Mat Fac Active Infowar (turns) 1262 | . 277 285 64 . 390 246 Optics 525 | . 176 285 64 . . . Sensors 636 | . . . . . 390 246 T.N.C. 446 | . 277 169 . . . . Robot Analysis Total . | . . . . . . . Derelict Logs Recovered 2 | . . 1 . 1 . . Drone Launches . | . . . . . . . Drone Recoveries . | . . . . . . . Exploration | -11 -10 -10 -10 -9 -8 -7 ------------- Run | Yrd Mat Min Exi Min Mat Fac Turns Passed 2030 | 41 667 300 126 253 397 246 Spaces Moved 2585 | 42 685 385 210 285 464 514 Core 13 | 13 . . . . . . Treads . | . . . . . . . Legs . | . . . . . . . Wheels 361 | 29 332 . . . . . Hover 1233 | . 353 385 210 285 . . Flight 978 | . . . . . 464 514 Fastest Speed 37 | 50 56 56 56 56 50 37 Average Speed 55 | 70 67 56 56 65 50 37 Slowest Speed 116 | 80 95 56 56 116 50 37 Overloaded Moves . | . . . . . . . Propulsion Burnouts . | . . . . . . . Robots Hopped 3 | . . . . . 2 1 Potential Cave-ins . | . . . . . . . Cave-ins Triggered . | . . . . . . . Exploration Rate (%) 48 | 4 89 72 61 63 36 13 Regions Visited 6 Branch Regions 3 Pre-discovered Areas . | . . . . . . . Known Exits Taken . | . . . . . . . Unknown Exits Taken 6 | 1 1 1 1 1 1 . Scrap Searched 2 | . . . . 2 . . Spaces Dug . | . . . . . . . Terrain Destroyed . | . . . . . . . Melee . | . . . . . . . Projectile . | . . . . . . . AOE . | . . . . . . . Terrain Rammed . | . . . . . . . Walls Destroyed . | . . . . . . . Machines Disabled . | . . . . . . . Actions | -11 -10 -10 -10 -9 -8 -7 --------- Run | Yrd Mat Min Exi Min Mat Fac Total 2982 | 53 813 425 219 349 574 549 Wait 133 | . 38 2 . 53 40 . Move 2573 | 41 684 384 209 284 459 512 Hop 3 | . . . . . 2 1 Pick Up 50 | 7 15 3 2 1 15 7 Fast Attach 9 | . 4 1 . 2 1 1 Attach 22 | 5 7 2 2 . 4 2 Detach 2 | . 1 . . . 1 . Swap 27 | . 3 3 1 1 11 8 Drop 43 | . 11 2 5 4 14 7 Fire 114 | . 48 27 . 4 24 11 Melee 3 | . . . . . 3 . Ram 3 | . 2 1 . . . . Kick . | . . . . . . . Crush . | . . . . . . . Escape Stasis . | . . . . . . . Rewire . | . . . . . . . Trap . | . . . . . . . Miscellaneous . | . . . . . . . Route ------- -11/Scrapyard -10/Materials (discovered 4 exits: [*Mat x2] / [*Min x2]) -10/Mines (discovered 2 exits: [*Mat] / *Exi) -10/Exiles -9/Mines -8/Materials -7/Factory History --------- Turn | Location | Event 9 | -11/Scrapyard | Discovered new exit (range 15) 42 | -11/Scrapyard | Entered Materials 313 | -10/Materials | Build established: Mutant 373 | -10/Materials | Discovered new exit (range 5) 495 | -10/Materials | Repaired Autogun 578 | -10/Materials | Discovered new exit (range 11) 594 | -10/Materials | Discovered new exit (range 18) 700 | -10/Materials | Discovered new exit (range 13) 709 | -10/Materials | Entered Mines 723 | -10/Mines | Discovered new exit (range 8) 784 | -10/Mines | Learned 2 Materials zone layouts 818 | -10/Mines | Build established: Scavenger-Mutant 914 | -10/Mines | Assembled infested the area 1007 | -10/Mines | Discovered new exit (range 5) 1009 | -10/Mines | Entered Exiles 1025 | -10/Exiles | Met 8R-AWN 1033 | -10/Exiles | Met EX-HEX 1049 | -10/Exiles | Met EX-BIN 1055 | -10/Exiles | Aligned with FarCom system 1056 | -10/Exiles | Given EX-Vault access code 1070 | -10/Exiles | Opened EX-Vault 1072 | -10/Exiles | Found Prototype Device 1074 | -10/Exiles | Identified Chronowheel 1074 | -10/Exiles | Activated Chronowheel 1079 | -10/Exiles | Found Prototype Flight Unit 1093 | -10/Exiles | Warned to stay clear of 0b10 Research branches 1108 | -10/Exiles | Met EX-DEC 1128 | -10/Exiles | Discovered new exit (range 14) 1135 | -10/Exiles | Left Exiles lab with Flying Fortress v7 1135 | -10/Exiles | Entered Mines 1151 | -9/Mines | Received a Rocket Launcher from a helpful Derelict 1202 | -9/Mines | Learned Materials interactive machine intel 1233 | -9/Mines | Received a Mining Laser from a helpful Derelict 1359 | -9/Mines | Found DCF Scrap (13 items) 1371 | -9/Mines | Discovered new exit (range 5) 1388 | -9/Mines | Entered Materials 1388 | -8/Materials | Accompanied by 3 allies 1388 | -8/Materials | Evolved 4 slots: Power x1, Propulsion x2, Utility x1 1390 | -8/Materials | Loaded intel: 18 interactive machine locations 1390 | -8/Materials | Identified Flying Fortress v7 1393 | -8/Materials | Led the pair of lost Derelicts to an unsafe place 1694 | -8/Materials | Build established: Scout 1746 | -8/Materials | Discovered new exit (range 15) 1785 | -8/Materials | Entered Factory 1785 | -7/Factory | Accompanied by 1 ally 1785 | -7/Factory | Evolved 2 slots: Propulsion x2 2031 | -7/Factory | Self-destructed Last Messages --------------- 01948_ K-01 Serf pushes G-47 Trooper. 01949_ K-01 Serf cleans the Terminal. 01949_ K-01 Serf pushes G-47 Trooper. 01949_ K-01 Serf cleans the Terminal. 01950_ K-01 Serf pushes G-47 Trooper. 01953_ K-01 Serf cleans the Terminal. 01957_ Dropped Rnf. Ion Engine+. 01991_ K-01 Serf cleans the Megafabricator. 01996_ Dropped Arc Projector. 01997_ Acquired Microactuators. 02003_ K-01 Serf collects debris. 02025_ Connecting with Recycling Unit... >>Recycling(Report) Matter reserves: 0 Inventory: Triangulator (45%) Gravmag Array (38%) Enh. Optical Array (48%) 02025_ ALERT: Suspicious activity at Recycling Unit F006. Dispatching Investigation squad. Map ----- +----------------------------------------------------+ | ????????????????????????????????????????? | | ????????????????????????????????????????? | | ????????????????????????????????????????? | | ????????? ???????????????????????????? | | ????????? #?????????????????????????? | | ????????# #?????????????????????????? | | ????????# #?????????????????????????? | | ????????# #?????????????????????????? | | ????????# ##??##########????????????? | | ????????# T???# ! ]! #????????????? | | ????????# ???# ! ##???????????? | | ????????# #???# #???????????? | | ????????# #???# "" [##???????????? | | ????????# #???# """ #????????????? | | ????????# #???# F" ############## | | ????????# #???# """ # # | | ######### #???# "" # ! # | | # [# #???# = # # | | # """ # #######+###+## # | | # """ # # # ## # | | # """ # # """"""" # ## # | | # # # """"""" # ## "" "" # | | # + + """"""" # ## "" "" # | | # # # """"""" # ## """ """ # | | # """# # # ## """ """ # | | # Y"# #!@ # ## """ """ # | | # ! """# # # ## # | | # # ########### #####+######### | | ######### #????# | | # + ? #????# | | #"" # ? #????# | | #"" # #????# | | #""" + % #????# | | #""" # ################ #????# | | #""" # #?????# ] # ###### | | # # #?????# # "" | | # # #?????# """""" + | | # [ # #?????# """""" # "" | | # # #?????# """""" # "" | | # # #?????# """""" # "" | | ######### #?????# ######## "" | | # # #?????# [ ! #??????# "" | | # # ####??# #??????# "" | | # + #??##+#######??????# "" | | # # #???# ??????????? "" | | # # !!/ !#???# ????????? "" | | # # !!/ ##### ??????? | | # # ! / ^ ???? "? | | # # / ?? "? | | # # ^ "? | +----------------------------------------------------+ Best States ------------- Heat Dissipation 59 Energy Generation 23 Energy Capacity 440 Matter Stores 300 Matter Capacity 300 Sight Range 18 Robot Scan Range 15 Terrain Scan Density 10 Evasion (%) 62 Targeting Accuracy 8 Item Schematics ----------------- None Robot Schematics ------------------ None Fabricated ------------ Nothing Repaired ---------- Autogun | 23% | -10/Materials Studied --------- Scythe | -8/Materials | Hacked Rnf. Ion Engine | -8/Materials | Hacked Alien Tech Used ----------------- None Achievements -------------- None Challenges ------------ None Game ------ Seed MicroReinforcedBallwheel Manual? 0 Play Time 00:29:52 Cumulative 47.0 hours Start 2026.08.16 @ 08:46:36 End 2026.08.16 @ 09:15:43 Sessions 1 Manual Loads 0 Difficulty Rogue Special Mode None Game No. 136 Rogue 136 Adventurer 0 Explorer 0 Win Type - Total 0 Types 0/0/0/0/0/0/0/0/0/0 Lore% 22 Gallery% 34 Achievement% 21 Wizard Run 0 Options --------- Layout 1 ASCII 0 Keyboard 0 Movement Mouse Keybinds 0 Fullscreen 1 Font 24/Smallcaps Map View 50x35 Zoom Use 0% Tactical HUD 1 Map Filters NONE Filters NONE Steam 1 RUN: e826c646-0536-425c-b199-be14f7f529e8